bitfinex-derivatives/quotes_BTCF0:USTF0_20241021
["timestamp","ask_amount","ask_price","bid_price","bid_amount"]
[1729491908973,0.0354288,69152.0,69147.0,0.072327]
[1729491909267,0.0354288,69151.0,69147.0,0.072327]
[1729491909459,0.00216978,69154.0,69147.0,0.072327]
[1729491909659,0.03542972,69153.0,69147.0,0.072327]
[1729491909873,0.03542972,69152.0,69148.0,0.072326]
[1729491910061,0.03542972,69151.0,69148.0,0.072326]
[1729491910261,0.00216978,69154.0,69148.0,0.072326]
[1729491910456,0.03542972,69153.0,69148.0,0.072326]
[1729491910668,0.3608,69149.0,69142.0,0.09572]
[1729491910972,0.04441259,69148.0,69142.0,0.09572]
[1729491911173,0.04441259,69147.0,69142.0,0.09572]
[1729491911476,0.072327,69148.0,69140.0,0.3608]
[1729491911677,0.072327,69147.0,69140.0,0.433134]
[1729491912568,0.072333,69142.0,69134.0,0.13524]
[1729491912771,0.072333,69142.0,69129.0,0.3608]
[1729491912772,0.3608,69136.0,69131.0,0.072344]
[1729491914369,0.3608,69136.0,69132.0,0.072343]
[1729491914879,0.3608,69136.0,69133.0,0.072342]
[1729491915067,0.3608,69136.0,69134.0,0.07234]
[1729491918373,0.3608,69136.0,69126.0,0.0333]
[1729491918576,0.3608,69136.0,69135.0,0.07234]
[1729491931577,0.072333,69142.0,69132.0,0.3608]
[1729491931882,0.072333,69142.0,69139.0,0.072335]
[1729491932089,0.072333,69142.0,69132.0,0.3608]
[1729491932283,0.072333,69142.0,69137.0,0.072337]
[1729491932484,0.072333,69142.0,69132.0,0.3608]
[1729491932686,0.072333,69142.0,69138.0,0.072336]
[1729491932989,0.072333,69142.0,69132.0,0.3608]
[1729491933286,0.072333,69142.0,69140.0,0.072334]
[1729491933880,0.3608,69143.0,69140.0,0.072334]
[1729491934877,0.3608,69143.0,69141.0,0.072333]
[1729491939386,0.04441471,69142.0,69141.0,0.072333]
[1729491940009,0.3608,69143.0,69142.0,0.072333]
[1729491940213,0.40521338,69143.0,69142.0,0.072333]
[1729491940812,0.07984645,69143.0,69142.0,0.072333]
[1729491941412,0.0871818,69149.0,69138.0,0.0327]
[1729491941713,0.03543287,69148.0,69143.0,0.07233]
[1729491941914,0.03543287,69147.0,69143.0,0.07233]
[1729491942114,0.03543287,69146.0,69143.0,0.07233]
[1729491942305,0.0871818,69149.0,69143.0,0.07233]
[1729491942505,0.03543287,69148.0,69143.0,0.07233]
[1729491942707,0.03543287,69147.0,69143.0,0.07233]
[1729491942906,0.03543287,69146.0,69144.0,0.07233]
[1729491943114,0.0871818,69149.0,69144.0,0.07233]
[1729491943311,0.3608,69145.0,69144.0,0.07233]
[1729491944418,0.40521337,69145.0,69144.0,0.07233]
[1729491947421,0.3608,69145.0,69144.0,0.07233]
[1729491949418,0.40521343,69145.0,69144.0,0.07233]
[1729491951111,0.3608,69145.0,69144.0,0.07233]
[1729491952317,0.3608,69147.0,69144.0,0.07233]
[1729491952827,0.03543306,69146.0,69144.0,0.07233]
[1729491953017,0.3608,69147.0,69140.0,0.01466287]
[1729491953212,0.035433,69146.0,69145.0,0.072329]
[1729491954425,0.07984588,69146.0,69145.0,0.072329]
[1729491954730,0.035433,69146.0,69145.0,0.072329]
[1729491960030,0.035433,69146.0,69145.0,0.08699376]
[1729491960832,1.08749357,73901.0,69145.0,0.01466476]
[1729491960833,0.43312,69155.0,69145.0,0.01466476]
[1729491961133,0.3608,69155.0,69153.0,0.072321]
[1729491962939,0.3608,69155.0,69154.0,0.07232]
[1729491973131,0.3608,69155.0,69154.0,0.06932]
[1729491973933,0.39622601,69155.0,69154.0,0.06932]
[1729491975243,0.072323,69151.0,69136.0,0.3608]
[1729491975540,0.03542868,69150.0,69145.0,0.072329]
[1729491975841,0.03542868,69149.0,69145.0,0.072329]
[1729491976044,0.03542868,69148.0,69141.0,0.01471748]
[1729491976247,0.072329,69145.0,69140.0,0.17014427]
[1729491976745,0.072329,69145.0,69140.0,0.09780927]
[1729491977039,0.072329,69145.0,69141.0,0.072334]
[1729491977243,0.072332,69143.0,69141.0,0.072334]
[1729491977542,0.0671327,69142.0,69141.0,0.072334]
[1729491977935,0.0671327,69142.0,69140.0,0.00216927]
[1729491978136,0.1731667,69141.0,69140.0,0.00216927]
[1729491978741,0.21758031,69141.0,69140.0,0.00216927]
[1729491978937,0.1731667,69141.0,69140.0,0.00216927]
[1729491979239,0.21758065,69141.0,69140.0,0.00216927]
[1729491979449,0.137734,69141.0,69140.0,0.00216927]
[1729491980541,0.18214891,69141.0,69140.0,0.00216927]
[1729491982938,0.18214949,69141.0,69140.0,0.00216927]
[1729491984241,0.54294949,69141.0,69140.0,0.00216927]
[1729491984444,0.072337,69138.0,69129.0,0.072346]
[1729491984742,0.3608,69134.0,69123.0,0.0302]
[1729491985136,0.3608,69134.0,69124.0,0.072351]
[1729491985337,0.04442024,69133.0,69131.0,0.072344]
[1729491985650,0.3608,69134.0,69132.0,0.072343]
[1729491987643,0.3608,69134.0,69123.0,0.04531407]
[1729491987950,0.3608,69134.0,69133.0,0.072342]
[1729491989737,0.3608,69134.0,69121.0,0.3608]
[1729491989943,0.072346,69129.0,69127.0,0.072348]
[1729491990143,0.4249,69128.0,69127.0,0.072348]
[1729491992651,0.3608,69128.0,69127.0,0.072348]
[1729491992854,0.433141,69134.0,69132.0,0.072342]
[1729491993742,0.3608,69134.0,69123.0,0.3608]
[1729491993952,0.3608,69134.0,69132.0,0.072342]
[1729491994347,0.3608,69134.0,69133.0,0.072342]
[1729492006352,0.08711251,69137.0,69133.0,0.072342]
[1729492006547,0.3608,69134.0,69133.0,0.072342]
[1729492008655,0.40522128,69134.0,69133.0,0.072342]
[1729492008956,0.45712716,69134.0,69133.0,0.072342]
[1729492009156,0.04442066,69134.0,69133.0,0.072342]
[1729492009554,0.15882694,69145.0,69144.0,0.07233]
[1729492009748,0.00216999,69148.0,69139.0,0.3608]
[1729492009952,0.00216999,69148.0,69147.0,0.072327]
[1729492010660,0.03760099,69148.0,69147.0,0.072327]
[1729492010961,0.00216999,69148.0,69147.0,0.072327]
[1729492013446,0.00216999,69148.0,69142.0,0.072332]
[1729492013651,0.00216999,69148.0,69139.0,0.45832]
[1729492013859,0.00216999,69148.0,69143.0,0.072331]
[1729492014058,0.00216999,69148.0,69144.0,0.07233]
[1729492015151,0.04441153,69147.0,69144.0,0.07233]
[1729492015350,0.00216999,69148.0,69144.0,0.07233]
[1729492015554,0.04441206,69147.0,69144.0,0.07233]
[1729492015764,0.00216999,69148.0,69144.0,0.07233]
[1729492016064,0.04441207,69147.0,69144.0,0.07233]
[1729492016262,0.00216999,69148.0,69144.0,0.07233]
[1729492019155,0.00216999,69148.0,69139.0,0.3608]
[1729492019351,0.00216999,69148.0,69145.0,0.070329]
[1729492020268,0.00216999,69148.0,69147.0,0.072327]
[1729492023764,0.04658252,69148.0,69147.0,0.072327]
[1729492028872,0.40738252,69148.0,69147.0,0.072327]
[1729492030467,0.56642316,69148.0,69147.0,0.072327]
[1729492031272,0.61831874,69148.0,69147.0,0.072327]
[1729492031667,0.36296999,69148.0,69147.0,0.072327]
[1729492034672,0.36296999,69148.0,69147.0,0.069327]
[1729492035079,0.40738223,69148.0,69147.0,0.069327]
[1729492045687,0.40738223,69148.0,69142.0,0.01502665]
[1729492045688,0.47970823,69148.0,69143.0,0.072331]
[1729492045883,0.07681224,69147.0,69143.0,0.072331]
[1729492046180,0.04441224,69146.0,69137.0,0.0328]
[1729492046383,0.04441224,69146.0,69143.0,0.072331]
[1729492046587,0.04441224,69145.0,69143.0,0.072331]
[1729492046784,0.04441224,69144.0,69143.0,0.072331]
[1729492046985,0.04441224,69146.0,69138.0,0.072337]
[1729492047183,0.15923341,69139.0,69138.0,0.072337]
[1729492047380,0.11549904,69147.0,69143.0,0.072331]
[1729492047582,0.04441458,69146.0,69143.0,0.072331]
[1729492047781,0.04441458,69145.0,69143.0,0.072331]
[1729492047993,0.04441458,69144.0,69143.0,0.072331]
[1729492049291,0.40521458,69144.0,69143.0,0.072331]
[1729492049592,0.45711362,69144.0,69143.0,0.072331]
[1729492051778,0.41269904,69144.0,69143.0,0.072331]
[1729492051982,0.45711349,69144.0,69143.0,0.072331]
[1729492053593,0.40521445,69144.0,69143.0,0.072331]
[1729492053997,0.04441445,69144.0,69143.0,0.072331]
[1729492057000,0.04441388,69144.0,69137.0,0.04770961]
[1729492057194,0.04441388,69143.0,69137.0,0.04770961]
[1729492057394,0.3608,69146.0,69144.0,0.07233]
[1729492057692,0.04441405,69145.0,69144.0,0.07233]
[1729492062006,0.04441422,69145.0,69144.0,0.07233]
[1729492062893,0.20360663,69145.0,69144.0,0.07233]
[1729492063403,0.04441422,69145.0,69144.0,0.07233]
[1729492063605,0.40521422,69145.0,69144.0,0.07233]
[1729492064103,0.40521422,69145.0,69144.0,0.08689949]
[1729492064295,0.04441422,69145.0,69144.0,0.08689949]
[1729492064602,0.40521422,69145.0,69144.0,0.08689949]
[1729492064799,0.04441422,69145.0,69144.0,0.08689949]
[1729492064999,0.40521422,69145.0,69144.0,0.08689949]
[1729492065300,0.00216999,69148.0,69147.0,0.072327]
[1729492065597,0.046582,69148.0,69147.0,0.064327]
[1729492067097,0.04658127,69148.0,69147.0,0.064327]
[1729492067300,0.16133472,69148.0,69147.0,0.064327]
[1729492067707,0.205746,69148.0,69147.0,0.064327]
[1729492067910,0.20574586,69148.0,69147.0,0.064327]
[1729492068708,0.04658113,69148.0,69147.0,0.064327]
[1729492072599,0.08201303,69148.0,69147.0,0.064327]
[1729492075815,0.51514003,69148.0,69142.0,0.072332]
[1729492076108,0.07541114,69147.0,69142.0,0.072332]
[1729492076308,0.04441114,69146.0,69142.0,0.072332]
[1729492076704,0.11674403,69145.0,69142.0,0.072332]
[1729492076906,0.04441403,69144.0,69142.0,0.072332]
[1729492077304,0.04441508,69143.0,69142.0,0.072332]
[1729492079405,0.04441508,69143.0,69137.0,0.0328]
[1729492079600,0.08289759,69147.0,69138.0,0.072337]
[1729492079601,0.04441508,69142.0,69138.0,0.072337]
[1729492079814,0.04441508,69141.0,69138.0,0.072337]
[1729492080013,0.04441508,69140.0,69138.0,0.072337]
[1729492080210,0.04441508,69139.0,69138.0,0.072337]
[1729492085222,0.072335,69140.0,69139.0,0.072336]
[1729492092020,0.37533597,69143.0,69132.0,0.3608]
[1729492092222,0.072337,69138.0,69136.0,0.072338]
[1729492093431,0.072337,69138.0,69132.0,0.3608]
[1729492093628,0.072337,69138.0,69137.0,0.072338]
[1729492095432,0.11675513,69138.0,69137.0,0.072338]
[1729492095826,0.04441813,69138.0,69137.0,0.072338]
[1729492096431,0.07234,69135.0,69127.0,0.3608]
[1729492096636,0.04441837,69138.0,69127.0,0.3608]
[1729492096637,0.11675937,69134.0,69130.0,0.072345]
[1729492096831,0.07491837,69133.0,69131.0,0.072344]
[1729492097029,0.04441837,69132.0,69131.0,0.072344]
[1729492097228,0.0305,69133.0,69131.0,0.072344]
[1729492098825,0.04442188,69132.0,69131.0,0.072344]
[1729492099036,0.04442188,69132.0,69131.0,0.073344]
[1729492100139,0.04442188,69132.0,69131.0,0.074344]
[1729492100845,0.04442188,69132.0,69131.0,0.075344]
[1729492101138,0.15895988,69132.0,69131.0,0.075344]
[1729492101330,0.04442188,69132.0,69131.0,0.075344]
[1729492102129,0.15895188,69132.0,69131.0,0.075344]
[1729492102329,0.20337376,69132.0,69131.0,0.075344]
[1729492104434,0.04442188,69132.0,69131.0,0.003]
[1729492104629,0.27571676,69132.0,69131.0,0.003]
[1729492105634,0.27571828,69132.0,69131.0,0.003]
[1729492105835,0.1167664,69132.0,69131.0,0.003]
[1729492107330,0.4775664,69132.0,69131.0,0.003]
[1729492109247,0.3608,69132.0,69117.0,0.39709006]
[1729492109443,0.072348,69127.0,69117.0,0.39709006]
[1729492109745,0.072348,69127.0,69121.0,0.072354]
[1729492110339,0.3608,69132.0,69117.0,0.41218143]
[1729492110535,0.433144,69132.0,69126.0,0.072349]
[1729492111845,0.3608,69132.0,69126.0,0.072349]
[1729492112041,0.072345,69130.0,69126.0,0.072349]
[1729492112942,0.072345,69130.0,69126.0,0.073349]
[1729492113144,0.072345,69130.0,69126.0,0.074349]
[1729492113640,0.072345,69130.0,69126.0,0.076349]
[1729492113847,0.072345,69130.0,69126.0,0.075349]
[1729492114045,0.072345,69130.0,69126.0,0.077349]
[1729492114850,0.3608,69132.0,69126.0,0.005]
[1729492115045,0.072347,69129.0,69126.0,0.005]
[1729492115350,0.072347,69128.0,69126.0,0.005]
[1729492116046,0.072347,69128.0,69126.0,0.002]
[1729492116249,0.072347,69128.0,69126.0,0.006]
[1729492116945,0.072347,69128.0,69126.0,0.007]
[1729492117151,0.072348,69127.0,69126.0,0.007]
[1729492117352,0.433143,69132.0,69126.0,0.007]
[1729492117545,0.433143,69132.0,69126.0,0.078349]
[1729492117850,0.433143,69132.0,69126.0,0.082349]
[1729492118556,0.072343,69132.0,69126.0,0.082349]
[1729492118944,0.01510067,69134.0,69126.0,0.082349]
[1729492118945,0.072345,69131.0,69126.0,0.082349]
[1729492119140,0.072345,69131.0,69126.0,0.075349]
[1729492119849,0.072345,69131.0,69126.0,0.074349]
[1729492120047,0.072345,69131.0,69126.0,0.075349]
[1729492120253,0.072345,69131.0,69126.0,0.076349]
[1729492120951,0.3608,69130.0,69126.0,0.076349]
[1729492121755,0.04442305,69129.0,69126.0,0.076349]
[1729492121940,0.3608,69130.0,69126.0,0.076349]
[1729492121941,0.04442305,69128.0,69126.0,0.076349]
[1729492122143,0.04442305,69127.0,69126.0,0.076349]
[1729492122852,0.04442305,69127.0,69126.0,0.077349]
[1729492123050,0.04442305,69127.0,69126.0,0.078349]
[1729492123651,0.04442305,69127.0,69126.0,0.079349]
[1729492123955,0.04442305,69127.0,69126.0,0.084349]
[1729492127053,0.01510067,69134.0,69131.0,0.072343]
[1729492127355,0.12748,69142.0,69131.0,0.072343]
[1729492127552,0.04442132,69138.0,69131.0,0.072343]
[1729492127753,0.04442132,69137.0,69131.0,0.072343]
[1729492127949,0.37577573,69139.0,69131.0,0.072343]
[1729492128152,0.04442108,69138.0,69131.0,0.072343]
[1729492128354,0.072341,69134.0,69131.0,0.072343]
[1729492129160,0.073341,69134.0,69131.0,0.072343]
[1729492132260,0.434141,69134.0,69131.0,0.072343]
[1729492132459,0.04442147,69133.0,69131.0,0.072343]
[1729492132763,0.04442147,69132.0,69131.0,0.072343]
[1729492133557,0.433141,69134.0,69131.0,0.073343]
[1729492135379,0.433141,69134.0,69131.0,0.074343]
[1729492135666,0.433141,69134.0,69131.0,0.075343]
[1729492136165,0.433141,69134.0,69131.0,0.072343]
[1729492136366,0.434141,69134.0,69131.0,0.072343]
[1729492136863,0.04442079,69133.0,69131.0,0.072343]
[1729492137167,0.04442079,69132.0,69131.0,0.072343]
[1729492138263,0.04442079,69132.0,69131.0,0.002]
[1729492138563,0.04442079,69132.0,69094.0,0.05781657]
[1729492138564,0.15917364,69132.0,69117.0,0.00217006]
[1729492138862,0.3608,69123.0,69117.0,0.00217006]
[1729492139063,0.072357,69119.0,69117.0,0.00217006]
[1729492139252,0.04442086,69118.0,69117.0,0.00217006]
[1729492139958,0.04442086,69118.0,69117.0,0.00417006]
[1729492140567,0.04442851,69118.0,69117.0,0.00417006]
[1729492141757,0.04442851,69118.0,69117.0,0.00217006]
[1729492141961,0.04442851,69118.0,69117.0,0.02917006]
[1729492143072,0.04442851,69118.0,69117.0,0.03017006]
[1729492143771,0.072357,69119.0,69117.0,0.03017006]
[1729492144655,0.0305,69121.0,69118.0,0.072358]
[1729492145882,0.0305,69121.0,69118.0,0.085358]
[1729492146456,0.0305,69121.0,69118.0,0.013]
[1729492146759,0.0305,69121.0,69120.0,0.072356]
[1729492148064,0.0305,69121.0,69120.0,0.085356]
[1729492148752,0.0305,69121.0,69120.0,0.096356]
[1729492151376,0.072347,69128.0,69120.0,0.024]
[1729492151556,0.3608,69129.0,69126.0,0.072349]
[1729492151870,0.04442708,69128.0,69121.0,0.072355]
[1729492152168,0.04442708,69128.0,69120.0,0.024]
[1729492152169,0.04442708,69127.0,69126.0,0.072349]
[1729492153572,0.04442708,69127.0,69126.0,0.077349]
[1729492153868,0.05958508,69127.0,69126.0,0.077349]
[1729492154864,0.05958508,69127.0,69126.0,0.083349]
[1729492155174,0.05958508,69127.0,69126.0,0.011]
[1729492156778,0.04442708,69127.0,69126.0,0.011]
[1729492157473,0.3608,69129.0,69126.0,0.011]
[1729492158975,0.3608,69129.0,69126.0,0.007]
[1729492160173,0.01465954,69130.0,69126.0,0.007]
[1729492160368,0.433144,69131.0,69126.0,0.007]
[1729492161274,0.072345,69130.0,69126.0,0.007]
[1729492161672,0.072345,69130.0,69126.0,0.005]
[1729492161872,0.072345,69130.0,69126.0,0.002]
[1729492162069,0.072345,69130.0,69126.0,0.004]
[1729492162269,0.072346,69129.0,69126.0,0.004]
[1729492163270,0.072346,69129.0,69126.0,0.002]
[1729492163468,0.072346,69129.0,69126.0,0.005]
[1729492163979,0.072346,69129.0,69126.0,0.006]
[1729492164365,0.072346,69129.0,69126.0,0.007]
[1729492164768,0.04442485,69128.0,69126.0,0.007]
[1729492164971,0.072346,69129.0,69126.0,0.007]
[1729492165177,0.04442485,69128.0,69126.0,0.007]
[1729492165369,0.072346,69129.0,69126.0,0.007]
[1729492165569,0.04442488,69128.0,69126.0,0.007]
[1729492165873,0.072348,69128.0,69126.0,0.008]
[1729492166865,0.072348,69128.0,69126.0,0.004]
[1729492166866,0.04442484,69127.0,69126.0,0.004]
[1729492167066,0.04442484,69127.0,69126.0,0.009]
[1729492167266,0.11677284,69127.0,69126.0,0.009]
[1729492168269,0.11677284,69127.0,69126.0,0.004]
[1729492168464,0.11677284,69127.0,69126.0,0.011]
[1729492178479,0.11677284,69127.0,69118.0,0.3608]
[1729492178480,0.072357,69119.0,69118.0,0.3608]
[1729492180186,0.072357,69119.0,69118.0,0.3738]
[1729492180383,0.073357,69119.0,69118.0,0.3878]
[1729492183082,0.073357,69119.0,69118.0,0.027]
[1729492188883,0.11778651,69119.0,69118.0,0.027]
[1729492193503,0.11778729,69119.0,69118.0,0.027]
[1729492195405,0.04543029,69119.0,69118.0,0.027]
[1729492196990,0.001,69119.0,69118.0,0.027]
[1729492200112,0.073357,69119.0,69118.0,0.027]
[1729492202103,0.434157,69119.0,69118.0,0.027]
[1729492202296,0.47859084,69119.0,69118.0,0.027]
[1729492202500,0.47859084,69119.0,69118.0,0.014]
[1729492202716,0.47859084,69119.0,69118.0,0.024]
[1729492202903,0.47859084,69119.0,69118.0,0.01]
[1729492203102,0.47859084,69119.0,69118.0,0.021]
[1729492203314,0.072364,69112.0,69106.0,0.0301]
[1729492203521,0.433164,69112.0,69106.0,0.0301]
[1729492204411,0.072368,69109.0,69102.0,0.3608]
[1729492204620,0.434164,69112.0,69111.0,0.019]
[1729492205519,0.434164,69112.0,69111.0,0.005]
[1729492206224,0.072368,69109.0,69102.0,0.433174]
[1729492207321,0.072368,69108.0,69102.0,0.433174]
[1729492207524,0.072368,69108.0,69103.0,0.072373]
[1729492209731,0.072368,69108.0,69103.0,0.075373]
[1729492210825,0.072368,69108.0,69103.0,0.077373]
[1729492211730,0.3608,69107.0,69103.0,0.077373]
[1729492212232,0.04443799,69106.0,69103.0,0.077373]
[1729492212433,0.04443799,69105.0,69103.0,0.077373]
[1729492212727,0.04443799,69104.0,69103.0,0.074373]
[1729492212926,0.04443799,69104.0,69103.0,0.078373]
[1729492213136,0.3608,69107.0,69103.0,0.078373]
[1729492213426,0.001,69105.0,69103.0,0.080373]
[1729492214132,0.001,69104.0,69103.0,0.074373]
[1729492214532,0.001,69104.0,69103.0,0.072373]
[1729492214725,0.001,69104.0,69103.0,0.074373]
[1729492215624,0.001,69104.0,69103.0,0.080373]
[1729492216026,0.001,69104.0,69103.0,0.074373]
[1729492216226,0.04643812,69104.0,69103.0,0.080373]
[1729492216837,0.04643808,69104.0,69103.0,0.080373]
[1729492217139,0.11881008,69104.0,69103.0,0.008]
[1729492219027,0.074372,69104.0,69103.0,0.008]
[1729492222039,0.08953205,69104.0,69103.0,0.008]
[1729492226934,0.13397587,69104.0,69103.0,0.008]
[1729492229046,0.08953205,69104.0,69103.0,0.008]
[1729492236148,0.45033205,69104.0,69103.0,0.008]
[1729492237454,0.4947754,69104.0,69103.0,0.008]
[1729492241549,0.49477484,69104.0,69103.0,0.008]
[1729492242052,0.54670581,69104.0,69103.0,0.008]
[1729492247555,0.3628,69104.0,69103.0,0.080373]
[1729492248453,0.40723836,69104.0,69103.0,0.080373]
[1729492249261,0.3628,69104.0,69103.0,0.080373]
[1729492250156,0.3628,69104.0,69103.0,0.072373]
[1729492257168,0.4072391,69104.0,69103.0,0.072373]
[1729492258561,0.4072391,69104.0,69102.0,0.0637]
[1729492258766,0.072374,69102.0,69101.0,0.0301]
[1729492258970,0.1168131,69102.0,69101.0,0.0301]
[1729492260870,0.1178131,69102.0,69101.0,0.0311]
[1729492261663,0.1188131,69102.0,69101.0,0.0391]
[1729492261968,0.0464391,69102.0,69101.0,0.111475]
[1729492264172,0.002,69102.0,69101.0,0.111475]
[1729492265473,0.002,69102.0,69101.0,0.103475]
[1729492276482,0.002,69102.0,69101.0,0.081375]
[1729492279481,0.04643804,69102.0,69101.0,0.081375]
[1729492281379,0.04643804,69102.0,69101.0,0.073375]
[1729492286880,0.002,69102.0,69101.0,0.073375]
[1729492296285,0.002,69102.0,69101.0,0.065375]
[1729492301119,0.04643794,69102.0,69101.0,0.065375]
[1729492303209,0.05192538,69118.0,69117.0,0.072359]
[1729492303410,0.07452365,69122.0,69113.0,0.4556]
[1729492303605,0.07452365,69122.0,69120.0,0.072356]
[1729492303910,0.00217065,69122.0,69121.0,0.072355]
[1729492304509,0.005,69122.0,69121.0,0.072355]
[1729492306211,0.01,69122.0,69121.0,0.072355]
[1729492306614,0.005,69122.0,69121.0,0.072355]
[1729492306920,0.005,69122.0,69114.0,0.0956]
[1729492307122,0.005,69122.0,69121.0,0.072355]
[1729492307721,0.072342,69133.0,69120.0,0.3608]
[1729492307920,0.14710503,69143.0,69129.0,0.3608]
[1729492308118,0.072334,69141.0,69136.0,0.072339]
[1729492308314,0.04441755,69137.0,69136.0,0.072339]
[1729492309325,0.0952,69143.0,69137.0,0.072337]
[1729492310523,0.456,69143.0,69137.0,0.072337]
[1729492310721,0.465,69143.0,69137.0,0.001]
[1729492310926,0.4321,69143.0,69140.0,0.072335]
[1729492311427,0.3698,69143.0,69140.0,0.072335]
[1729492311728,0.3698,69143.0,69140.0,0.064335]
[1729492312421,0.3658,69143.0,69140.0,0.064335]
[1729492312727,0.3698,69143.0,69140.0,0.064335]
[1729492313927,0.009,69143.0,69140.0,0.433134]
[1729492314620,0.009,69143.0,69141.0,0.072333]
[1729492315329,0.009,69143.0,69141.0,0.167133]
[1729492315920,0.009,69143.0,69141.0,0.168133]
[1729492317024,0.15852009,69156.0,69153.0,0.072321]
[1729492317225,0.04657599,69154.0,69153.0,0.072321]
[1729492318625,0.05057599,69154.0,69153.0,0.072321]
[1729492318829,0.05557489,69154.0,69153.0,0.072321]
[1729492320227,0.01116962,69154.0,69153.0,0.072321]
[1729492320429,0.009,69154.0,69153.0,0.072321]
[1729492320636,0.009,69154.0,69151.0,0.09476]
[1729492321619,0.005,69154.0,69151.0,0.09476]
[1729492321825,0.009,69154.0,69151.0,0.09476]
[1729492322035,0.004,69154.0,69151.0,0.09476]
[1729492322328,0.009,69154.0,69151.0,0.09476]
[1729492323734,0.009,69154.0,69151.0,0.167083]
[1729492323936,0.009,69154.0,69153.0,0.072321]
[1729492325838,0.005,69154.0,69153.0,0.072321]
[1729492326029,0.004,69154.0,69153.0,0.072321]
[1729492326335,0.009,69154.0,69153.0,0.072321]
[1729492327933,0.009,69154.0,69151.0,0.00192]
[1729492328129,0.009,69154.0,69145.0,0.3608]
[1729492328322,0.072328,69146.0,69145.0,0.3608]
[1729492329828,0.076328,69146.0,69145.0,0.3608]
[1729492330137,0.076328,69146.0,69145.0,0.433129]
[1729492330138,0.004,69146.0,69145.0,0.433129]
[1729492331138,0.0333,69167.0,69145.0,0.433129]
[1729492331139,0.3283,69175.0,69146.0,0.43384]
[1729492331323,0.04440245,69167.0,69164.0,0.3608]
[1729492331524,0.04440245,69166.0,69165.0,0.072308]
[1729492331735,0.04439948,69166.0,69165.0,0.072308]
[1729492332434,0.04439948,69166.0,69164.0,0.45752]
[1729492332435,0.004,69168.0,69167.0,0.072306]
[1729492332836,0.04439664,69169.0,69167.0,0.072306]
[1729492333036,0.04439664,69168.0,69167.0,0.072306]
[1729492334125,0.04939664,69168.0,69167.0,0.072306]
[1729492334436,0.005,69168.0,69167.0,0.072306]
[1729492334744,0.008,69168.0,69167.0,0.072306]
[1729492336825,0.15852009,69181.0,69178.0,0.072295]
[1729492337025,0.15852009,69180.0,69178.0,0.072295]
[1729492337235,0.04439405,69179.0,69178.0,0.072295]
[1729492337432,0.04438998,69179.0,69175.0,0.072298]
[1729492337633,0.3608,69186.0,69178.0,0.072294]
[1729492337829,0.04438978,69185.0,69178.0,0.072294]
[1729492338032,0.04438978,69184.0,69178.0,0.072294]
[1729492338335,0.04438978,69184.0,69174.0,0.09468]
[1729492338336,0.004,69180.0,69179.0,0.072294]
[1729492339541,0.008,69180.0,69179.0,0.072294]
[1729492340036,0.004,69180.0,69179.0,0.072294]
[1729492340237,0.008,69180.0,69179.0,0.072294]
[1729492341426,0.008,69180.0,69174.0,0.09468]
[1729492341629,0.008,69180.0,69175.0,0.072298]
[1729492341929,0.007,69180.0,69174.0,0.09468]
[1729492342129,0.007,69180.0,69176.0,0.072297]
[1729492342332,0.007,69180.0,69177.0,0.072295]
[1729492342530,0.007,69180.0,69179.0,0.072294]
[1729492343536,0.003,69180.0,69179.0,0.072294]
[1729492343740,0.007,69180.0,69179.0,0.072294]
[1729492344244,0.004,69180.0,69179.0,0.072294]
[1729492344442,0.007,69180.0,69179.0,0.072294]
[1729492344947,0.004,69180.0,69179.0,0.072294]
[1729492345143,0.007,69180.0,69179.0,0.072294]
[1729492347042,0.04241308,69180.0,69179.0,0.072294]
[1729492347547,0.007,69180.0,69179.0,0.072294]
[1729492347956,0.04241268,69180.0,69179.0,0.072294]
[1729492348242,0.05138744,69180.0,69179.0,0.072294]
[1729492348460,0.08680008,69180.0,69179.0,0.072294]
[1729492348645,0.04241268,69180.0,69179.0,0.072294]
[1729492349438,0.007,69180.0,69179.0,0.072294]
[1729492349843,0.08679995,69180.0,69179.0,0.072294]
[1729492350152,0.007,69180.0,69179.0,0.433094]
[1729492350841,0.04241073,69180.0,69179.0,0.433094]
[1729492351042,0.04241044,69180.0,69179.0,0.433094]
[1729492351742,0.04241044,69180.0,69179.0,0.464994]
[1729492352249,0.04241044,69180.0,69179.0,0.898634]
[1729492353139,0.04241044,69180.0,69179.0,0.464994]
[1729492354451,0.007,69180.0,69179.0,0.898634]
[1729492354850,0.072284,69189.0,69185.0,0.072287]
[1729492355156,0.072285,69188.0,69186.0,0.09464]
[1729492355357,0.072285,69188.0,69187.0,0.072285]
[1729492356056,0.072287,69186.0,69184.0,0.3608]
[1729492356257,0.072287,69186.0,69185.0,0.09464]
[1729492357351,0.003,69189.0,69185.0,0.022352]
[1729492357659,0.072287,69186.0,69185.0,0.022352]
[1729492357958,0.072287,69186.0,69185.0,0.014352]
[1729492358358,0.076287,69186.0,69185.0,0.014352]
[1729492358559,0.072288,69185.0,69183.0,0.09464]
[1729492359252,0.103388,69185.0,69183.0,0.09464]
[1729492359762,0.106388,69185.0,69183.0,0.09464]
[1729492359950,0.106388,69185.0,69182.0,0.07229]
[1729492360257,0.003,69185.0,69184.0,0.072289]
[1729492360845,0.007,69185.0,69184.0,0.072289]
[1729492362646,0.007,69185.0,69184.0,0.505929]
[1729492362848,0.0311,69196.0,69195.0,0.072277]
[1729492363050,0.0665068,69196.0,69195.0,0.166877]
[1729492364566,0.0695068,69196.0,69195.0,0.166877]
[1729492364860,0.08678512,69196.0,69195.0,0.166877]
[1729492365069,0.0424068,69196.0,69195.0,0.166877]
[1729492367971,0.0424068,69196.0,69195.0,0.18147916]